Cogmind - Beta 17 @@@ ROGUE MODE // 2026.06.29 @ 17:09:11 Player: Andru7428 Result: Destroyed by P-60 Hacker with Shock Rifle Performance ------------- Evolutions (2) 1000 Regions Visited (6) 1200 Robots Destroyed (66) 330 Value Destroyed (1931) 1931 Prototype IDs (27) 540 Alien Tech Used (0) 0 Bonus (411) 411 TOTAL SCORE: 5412 Bonus ------- High Alert Combat Kills 11 Entered Garrisons 400 Cogmind --------- Core Integrity 0/550 Matter 295/300 Energy 98/100 System Corruption 1% Temperature Cool (14) Movement Core (50) Location -8/Garrison Parts ------- > --- POWER (1) -------- (None) > --- PROPULSION (3) --- (None) > --- UTILITY (4) ------ Self-contained Transmogrifier > --- WEAPON (3) ------- (None) > --- INVENTORY (5) ---- Cargo Legs Heavy Armor Plating High-powered Tractor Beam Peak State ------------ > --- POWER ------------ Reinforced Deuterium Engine > --- PROPULSION ------- Armored Treads Medium Treads Medium Treads > --- UTILITY ---------- Large Storage Unit Experimental Targeting Computer Improved Transmission Jammer Self-contained Transmogrifier > --- WEAPON ----------- Cooled Plasma Cannon Cooled Plasma Cannon Cooled Plasma Cannon > --- INVENTORY -------- Improved Ion Engine Armored Treads Armored Treads Cargo Legs Improved Heat Sink Machine Analyzer Heavy Armor Plating Authchip [R/NC] High-powered Tractor Beam Assault Cannon Shock Bomb Launcher Grenade Launcher [Rating: 60] Favorites ----------- Power Ion Engine Engine Ion Engine Power Core Nuclear Core Propulsion Light Treads Treads Light Treads Utility Self-contained Transmogrifier Device Self-contained Transmogrifier Storage Large Storage Unit Processor Experimental Targeting Computer Protection Hardened Light Armor Plating Weapon Heavy Assault Rifle Energy Gun Improved Medium Laser Energy Cannon Cooled Plasma Cannon Ballistic Gun Heavy Assault Rifle Launcher Grenade Launcher Impact Weapon Powered Hammer Slashing Weapon Chainsword Piercing Weapon Makeshift Spear Build | -11 -10 -10 -8 -8 -8 -8 ------- Run | Yrd Mat Sub Mat Gar Mat Gar Slots Evolved 4 | . . . 4 . . . Power . | . . . . . . . Propulsion 1 | . . . 1 . . . Utility 2 | . . . 2 . . . Weapon 1 | . . . 1 . . . Parts Attached 43 | 7 9 6 19 1 1 . Power 5 | 1 2 . 1 . 1 . Engine 5 | 1 2 . 1 . 1 . Core . | . . . . . . . Reactor . | . . . . . . . Propulsion 10 | 2 1 2 5 . . . Treads 10 | 2 1 2 5 . . . Leg . | . . . . . . . Wheel . | . . . . . . . Hover . | . . . . . . . Flight . | . . . . . . . Utility 13 | 2 3 2 6 . . . Device 6 | 1 2 1 2 . . . Storage 4 | 1 1 . 2 . . . Processor . | . . . . . . . Hackware . | . . . . . . . Protection 3 | . . 1 2 . . . Artifact . | . . . . . . . Weapon 15 | 2 3 2 7 1 . . Energy Gun 2 | . . . 2 . . . Energy Cannon 5 | . . 1 3 1 . . Ballistic Gun 7 | 2 2 1 2 . . . Ballistic Cannon . | . . . . . . . Launcher 1 | . 1 . . . . . Special Weapon . | . . . . . . . Impact Weapon . | . . . . . . . Slashing Weapon . | . . . . . . . Piercing Weapon . | . . . . . . . Special Melee Weapon . | . . . . . . . Unidentified Prototypes 6 | . . 1 5 . . . Parts Lost 5 | . . . 1 . 1 3 Power 2 | . . . . . 1 1 Propulsion 1 | . . . . . . 1 Utility . | . . . . . . . Weapon 2 | . . . 1 . . 1 Highest Loss Streak 3 | . . . 1 . 1 3 To Critical Strikes . | . . . . . . . Average Backups 10 | 4 8 9 12 11 12 11 Power . | . . . . 1 . . Propulsion 2 | 3 2 2 2 3 3 3 Utility 3 | . 2 4 4 4 5 6 Weapon 3 | . 2 3 4 3 3 2 Tool/Special . | . . . . . . . Unused Backups 24 | . 7 . 5 . 1 11 Power . | . . . . . . . Propulsion 8 | . 4 . 1 . . 3 Utility 10 | . 1 . 2 . 1 6 Weapon 6 | . 2 . 2 . . 2 Tool/Special . | . . . . . . . Average Slot Usage (%) 98 | . 98 100 96 100 100 94 Engine 8 | . 13 14 2 3 9 8 Core 2 | . . . 6 5 . . Treads 26 | . 27 28 25 27 27 25 Device 15 | . 14 7 19 18 18 18 Storage 11 | . 14 14 9 9 10 16 Processor 1 | . . . . 9 7 . Protection 2 | . . 6 5 . . . Energy Gun 1 | . . . 5 1 . . Energy Cannon 4 | . . 5 3 12 19 16 Ballistic Gun 17 | . 27 22 13 3 . . Impact Weapon 1 | . . . 2 7 . . Peak Build Rating 60 | 7 10 21 52 60 60 55 Average Rating 27 | 5 8 11 38 53 56 52 On Entrance 29 | . 7 10 21 52 60 55 Avg Prop Armor Cover (%) . | . . . . . . . Naked Turns . | . . . . . . . Heaviest Build 60 | 13 22 31 52 60 60 51 Greatest Support 76 | 40 40 40 76 76 76 76 Greatest Overweight (x) 2 | 2 . . 1 . . . Average Overweight (x) . | . . . . . . . Largest Inventory Capacity 15 | 8 10 10 15 15 15 15 Average Capacity 12 | 7 8 10 14 15 15 14 Most Carried 15 | 7 10 10 15 14 15 14 Average Carried 11 | 4 8 9 13 13 14 13 Final Capacity 15 | 8 10 10 15 15 15 5 Final Carried 14 | 7 10 10 14 14 14 5 Transmogrified Parts 33 | . . 1 23 7 2 . Integrity Recovered 408 | . . 52 186 158 12 . Class Distribution -------------------- 71% | Mutant 14% | Tank 14% | Gunner Dominant Class ---------------- Mutant | -10/Materials Mutant | -10/Subcaves Tank | -8/Materials Mutant | -8/Garrison Mutant | -8/Materials Mutant | -8/Garrison Resources | -11 -10 -10 -8 -8 -8 -8 ----------- Run | Yrd Mat Sub Mat Gar Mat Gar Matter Collected 1757 | 300 507 149 643 148 10 . Remotely . | . . . . . . . Salvage Created 2457 | 124 502 82 1083 511 155 . Parts 122 | 6 36 9 37 26 8 . Haulers Intercepted 6 | . 2 . 3 . 1 . Recyclers Shooed 1 | . . . . . 1 . Parts Field Recycled . | . . . . . . . Retrieved Matter . | . . . . . . . Parts Self-Destructed 5 | . . 5 . . . . Prevented . | . . . . . . . Parts Restored . | . . . . . . . Kills | -11 -10 -10 -8 -8 -8 -8 ------- Run | Yrd Mat Sub Mat Gar Mat Gar Combat Hostiles Destroyed 50 | . 13 3 16 16 2 . Melee 6 | . . . 2 4 . . Guns 25 | . 9 1 12 3 . . Cannons 4 | . . . . 2 2 . AOE 12 | . 4 2 1 5 . . Classes Destroyed 11 | 2 6 1 2 . . . Worker 2 | . 1 . 1 . . . Builder 1 | . 1 . . . . . Tunneler 2 | 2 . . . . . . Hauler 6 | . 2 . 3 . 1 . Recycler 3 | 1 . . 2 . . . Watcher 2 | . 2 . . . . . Swarmer 12 | . 6 . . 6 . . Grunt 27 | . 7 . 14 6 . . Brawler 1 | . . . 1 . . . Sentry 7 | . . . 1 4 2 . Subdweller 3 | . . 3 . . . . Best Kill Streak 9 | 3 4 2 3 9 1 . Combat Bots Only 9 | . 4 2 3 9 1 . Max Kills in Single Turn 2 | 1 2 1 1 2 1 . Gunslinging . | . . . . . . . Exploded 2 | . 2 1 1 2 . . Melee 1 | . . . 1 1 . . Uniques/NPCs Destroyed . | . . . . . . . Combat | -11 -10 -10 -8 -8 -8 -8 -------- Run | Yrd Mat Sub Mat Gar Mat Gar Hostile Shots Fired 280 | . 51 13 76 83 2 55 Missed 73 | . 17 3 18 22 . 13 Hits 207 | . 34 10 58 61 2 42 Melee 14 | . . . . . . 14 Projectile 193 | . 34 10 58 61 2 28 Critical Strikes 12 | . . . 4 3 . 5 Damage Taken 3152 | . 381 289 881 747 205 649 Core 637 | . 61 22 68 132 20 334 Absorbed by Shields 17 | . . . 17 . . . Regen/Repaired (Parts) 114 | . 114 . . . . . Core Remaining (%) 83 | 100 . 66 . . . . Volleys Fired 154 | 5 51 14 50 28 4 2 Largest 3 | 2 2 2 3 3 2 2 Hottest 148 | 40 46 80 148 105 70 70 Shots Fired 313 | 10 96 19 141 36 8 3 Gun 263 | 10 91 10 135 17 . . Cannon 31 | . . 4 4 13 8 2 Launcher 19 | . 5 5 2 6 . 1 Special . | . . . . . . . Kinetic 228 | 10 91 10 100 17 . . Thermal 64 | . . 4 37 13 8 2 Explosive 19 | . 5 5 2 6 . 1 Electromagnetic 2 | . . . 2 . . . Robot Hit Streak 17 | 6 8 12 17 8 7 . Robot Miss Streak 5 | 2 3 1 3 5 1 . Penetration Max . | . . . . . . . Secondary Targets 1 | . . . 1 . . . Max Gunslinging Chain 1 | . . . 1 . . . Shots Hit Robots 229 | 6 58 14 112 32 7 . Core Hits 103 | 4 27 6 42 21 3 . Critical Kills 2 | . . 1 1 . . . Critical Parts Destroyed 3 | . . . . 3 . . Critical Strikes 10 | . . 1 6 3 . . Burn 5 | . . . 5 . . . Destroy 1 | . . 1 . . . . Smash 4 | . . . 1 3 . . Melee Attacks 45 | . . . 20 25 . . Impact 39 | . . . 17 22 . . Slashing 6 | . . . 3 3 . . Piercing . | . . . . . . . Sneak Attacks 1 | . . . . 1 . . Combat Hostiles 1 | . . . . 1 . . Follow-up Attacks 5 | . . . 4 1 . . Damage Inflicted 5364 | 74 1033 364 2438 1216 217 22 Guns 2540 | 74 771 131 1437 127 . . Cannons 476 | . . . 89 170 217 . Explosions 1057 | . 229 233 113 460 . 22 Melee 1187 | . . . 728 459 . . Ramming 104 | . 33 . 71 . . . Kinetic 2154 | 74 771 131 1051 127 . . Thermal 851 | . . . 464 170 217 . Explosive 1057 | . 229 233 113 460 . 22 Electromagnetic 11 | . . . 11 . . . Impact 1026 | . . . 597 429 . . Slashing 161 | . . . 131 30 . . Piercing . | . . . . . . . Highest Corruption 1 | . . . . . 1 1 Average Corruption 1 | . . . . . 1 1 Corruption Purged . | . . . . . . . Corruption Blocked . | . . . . . . . Overload Shots . | . . . . . . . Overflow Damage 348 | . 19 . 155 152 22 . Projectiles 22 | . . . . . 22 . Explosions 19 | . 19 . . . . . Melee 307 | . . . 155 152 . . Knockbacks 4 | . . . 4 . . . Impact 4 | . . . 4 . . . Kinetic . | . . . . . . . Secondary . | . . . . . . . Self-Inflicted Damage 57 | . 10 47 . . . . Shots 3 | . 1 2 . . . . Rammed 15 | . 7 . 8 . . . Targets Rammed 17 | . 8 . 9 . . . Kicked . | . . . . . . . Crushed 2 | . 1 . 1 . . . Highest Temperature 409 | . 2 20 409 114 7 5 Average Temperature 70 | . 2 10 88 26 4 5 Received Heat Transfer 1066 | . 168 9 547 270 9 63 Effects 1 | . . . 1 . . . Shutdowns 1 | . . . 1 . . . Siege Activations . | . . . . . . . Martial Activations . | . . . . . . . Shielding Activations . | . . . . . . . Robots Disrupted . | . . . . . . . Combat Hostiles . | . . . . . . . Robots Corrupted 3 | . . . 1 2 . . Combat Hostiles 3 | . . . 1 2 . . Parts Fried 5 | . . . 2 3 . . Impact Corruptions 9 | . . . 5 4 . . Robots Melted . | . . . . . . . Combat Hostiles . | . . . . . . . Parts Melted 3 | . . . 1 1 1 . Heat Transferred 1943 | . . . 1332 261 350 . Parts Sabotaged . | . . . . . . . Parts Stolen . | . . . . . . . Parts Stripped . | . . . . . . . Power Chain Reactions . | . . . . . . . Alert | -11 -10 -10 -8 -8 -8 -8 ------- Run | Yrd Mat Sub Mat Gar Mat Gar Maximum Alert Level 2 | . . . 1 2 1 . Low Security (%) 81 | 100 100 . 86 27 45 100 Level 1 15 | . . . 13 51 54 . Level 2 3 | . . . . 20 . . Level 3 . | . . . . . . . Level 4 . | . . . . . . . Level 5 . | . . . . . . . High Security . | . . . . . . . Max Security . | . . . . . . . Peak Influence 432 | 10 143 . 257 432 218 135 Initial 210 | . . . . 18 210 135 Average 88 | 1 29 . 65 262 201 133 Influence Increases 1556 | 15 455 . 597 414 68 7 Destroy 0b10 Robot/C 940 | . 260 . 320 320 40 . Destroy 0b10 Robot/NC 80 | 15 30 . 30 . 5 . Destroy Leader 186 | . 78 . 66 20 22 . Successful Hack 61 | . 9 . 38 14 . . Select Force Hacks 30 | . 30 . . . . . Disable Machine 75 | . . . 60 15 . . Destroy Structure 79 | . 33 . 8 30 1 7 Lose Combat Pursuer 105 | . 15 . 75 15 . . Influence Decreases 1444 | 15 455 . 568 11 292 103 Entered New Map 306 | . . . . 11 222 73 Time Decay 811 | 15 328 . 408 . 60 . Lost Part 50 | . . . 10 . 10 30 Purge Threat 277 | . 127 . 150 . . . Squads Dispatched 8 | . 3 . 4 . 1 . Investigation 4 | . 2 . 2 . . . Extermination . | . . . . . . . Reinforcement 3 | . 1 . 2 . . . Assault . | . . . . . . . Garrison 1 | . . . . . 1 . Intercept . | . . . . . . . Searches Triggered . | . . . . . . . Construction Impeded . | . . . . . . . Haulers Reinforced . | . . . . . . . Active Scanning Responses . | . . . . . . . Cargo Convoy Interrupts . | . . . . . . . Stealth | -11 -10 -10 -8 -8 -8 -8 --------- Run | Yrd Mat Sub Mat Gar Mat Gar Distress Signals 2 | . 1 . 1 . . . Communications Jammed . | . . . . . . . Distress Signals . | . . . . . . . Times Spotted 89 | . 26 3 25 15 2 18 Peak Tracking Total 17 | . 4 2 6 5 1 17 Tactical Retreats 4 | . 1 . 2 1 . . Traps | -11 -10 -10 -8 -8 -8 -8 ------- Run | Yrd Mat Sub Mat Gar Mat Gar Traps Triggered 5 | . 3 . 1 . 1 . Indirectly . | . . . . . . . Trap Hack Attempts . | . . . . . . . Triggered . | . . . . . . . Disarmed . | . . . . . . . Reprogrammed . | . . . . . . . Reused . | . . . . . . . Traps Extracted . | . . . . . . . Installed . | . . . . . . . Triggered . | . . . . . . . Machines | -11 -10 -10 -8 -8 -8 -8 ---------- Run | Yrd Mat Sub Mat Gar Mat Gar Machines Disabled 6 | . . 1 4 1 . . Max in Single Turn 1 | . . 1 1 1 . . Machines Repaired . | . . . . . . . Machines Dismantled . | . . . . . . . Machines Sabotaged . | . . . . . . . Overloaded Fab Kills . | . . . . . . . Hacking | -11 -10 -10 -8 -8 -8 -8 --------- Run | Yrd Mat Sub Mat Gar Mat Gar Machines Accessed 21 | . 8 2 8 2 1 . Terminals 13 | . 5 . 6 2 . . Fabricators . | . . . . . . . Repair Stations 1 | . 1 . . . . . Recycling Units 3 | . 2 . 1 . . . Scanalyzers . | . . . . . . . Garrison Access 2 | . . . 1 . 1 . Total Hacks 58 | . 24 2 28 2 2 . Successful 27 | . 12 2 11 1 1 . Failed 30 | . 11 . 17 1 1 . Catastrophic 5 | . 1 . 3 1 . . Database Lockouts 1 | . 1 . . . . . Manual 25 | . 15 . 10 . . . Terminals 40 | . 16 . 22 2 . . Fabricators . | . . . . . . . Repair Stations 6 | . 6 . . . . . Recycling Units 6 | . 2 . 4 . . . Scanalyzers . | . . . . . . . Garrison Access 4 | . . . 2 . 2 . Terminal Hacks 13 | . 3 2 7 1 . . Part Schematic 1 | . 1 . . . . . Robot Analysis 1 | . . . 1 . . . Prototype ID Bank 3 | . . . 3 . . . Open Door 1 | . . 1 . . . . Emergency Access Points 1 | . . . . 1 . . Alert Level 1 | . . . 1 . . . Unreport Threat 2 | . 1 . 1 . . . Locate Traps 1 | . 1 . . . . . Hauler Manifests 1 | . . . 1 . . . Proto ID Catalog 1 | . . 1 . . . . Fabricator Hacks . | . . . . . . . Repair Station Hacks 4 | . 4 . . . . . Scan Component 2 | . 2 . . . . . Repair 2 | . 2 . . . . . Recycling Unit Hacks . | . . . . . . . Scanalyzer . | . . . . . . . Garrison Access Hacks 2 | . . . 1 . 1 . Unlock Access 2 | . . . 1 . 1 . Unauthorized Hacks 8 | . 5 . 3 . . . Terminals 5 | . 4 . 1 . . . Track 2 | . 1 . 1 . . . Botnet 1 | . 1 . . . . . Skim 2 | . 2 . . . . . Fabricators . | . . . . . . . Repair Stations . | . . . . . . . Recycling Units 3 | . 1 . 2 . . . Monitor 1 | . . . 1 . . . Reject 1 | . . . 1 . . . Tunnel 1 | . 1 . . . . . Scanalyzers . | . . . . . . . Garrison Access . | . . . . . . . Data Cores Recovered . | . . . . . . . Used . | . . . . . . . Hacking Detections 16 | . 7 . 7 1 1 . Full Trace Events 1 | . 1 . . . . . Feedback Events . | . . . . . . . Feedback Blocked . | . . . . . . . Robot Schematics Acquired . | . . . . . . . Robots Built . | . . . . . . . Authchips . | . . . . . . . Time . | . . . . . . . Total Robot Build Rating . | . . . . . . . Part Schematics Acquired 1 | . 1 . . . . . Parts Built . | . . . . . . . Authchips . | . . . . . . . Time . | . . . . . . . Total Part Build Rating . | . . . . . . . Part Studies Acquired . | . . . . . . . Parts Repaired 2 | . 2 . . . . . Time 52 | . 52 . . . . . Parts Recycled . | . . . . . . . Recycled Matter . | . . . . . . . Retrieved Matter . | . . . . . . . Retrieved Components . | . . . . . . . Parts Scanalyzed . | . . . . . . . Part Schematics Acquired . | . . . . . . . Parts Damaged . | . . . . . . . Bothacking | -11 -10 -10 -8 -8 -8 -8 ------------ Run | Yrd Mat Sub Mat Gar Mat Gar Used RIF Installer . | . . . . . . . Robots Hacked . | . . . . . . . Non-combat . | . . . . . . . Combat . | . . . . . . . Robot Hacks Applied . | . . . . . . . Relay Couplers Released . | . . . . . . . Fabnet Peak Effective % . | . . . . . . . Robots Rewired . | . . . . . . . Allies Hacked . | . . . . . . . Hacks Repelled . | . . . . . . . Allies | -11 -10 -10 -8 -8 -8 -8 -------- Run | Yrd Mat Sub Mat Gar Mat Gar Total Allies . | . . . . . . . Largest Group . | . . . . . . . Highest-Rated Group . | . . . . . . . Highest-Rated Ally . | . . . . . . . Initial Warlord ECA Mod 2 | . . . . . 2 2 Total Orders 2 | . . . 2 . . . EXPLORE 1 | . . . 1 . . . RETURN 1 | . . . 1 . . . Ally Attacks . | . . . . . . . Total Damage . | . . . . . . . Kills . | . . . . . . . Allies Corrupted . | . . . . . . . Allies Melted . | . . . . . . . Intel | -11 -10 -10 -8 -8 -8 -8 ------- Run | Yrd Mat Sub Mat Gar Mat Gar Active Infowar (turns) 3309 | 21 1559 303 686 656 84 . Terrain 93 | . 93 . . . . . Seismic 2441 | 21 1466 303 651 . . . Jamming 775 | . . . 35 656 84 . Robot Analysis Total 1 | . . . 1 . . . Derelict Logs Recovered . | . . . . . . . Drone Launches 2 | . . . 2 . . . Drone Recoveries 2 | . . . 2 . . . Exploration | -11 -10 -10 -8 -8 -8 -8 ------------- Run | Yrd Mat Sub Mat Gar Mat Gar Turns Passed 4882 | 94 1559 746 1560 656 139 128 Spaces Moved 2391 | 42 745 408 728 313 75 80 Core 18 | 8 . . . . . 10 Treads 2373 | 34 745 408 728 313 75 70 Legs . | . . . . . . . Wheels . | . . . . . . . Hover . | . . . . . . . Flight . | . . . . . . . Fastest Speed 50 | 50 160 160 160 163 163 50 Average Speed 163 | 148 160 160 170 163 163 148 Slowest Speed 250 | 160 160 160 250 163 163 163 Overloaded Moves . | . . . . . . . Propulsion Burnouts . | . . . . . . . Robots Hopped . | . . . . . . . Potential Cave-ins . | . . . . . . . Cave-ins Triggered . | . . . . . . . Exploration Rate (%) 39 | 3 91 24 71 49 12 24 Regions Visited 6 Branch Regions 1 Pre-discovered Areas 1 | . 1 . . . . . Known Exits Taken 2 | . . . 1 . 1 . Unknown Exits Taken 3 | 1 1 1 . . . . Scrap Searched 2 | . . 2 . . . . Spaces Dug 5 | . . . 2 3 . . Terrain Destroyed 78 | . 36 21 7 11 1 2 Melee 5 | . . . 2 3 . . Projectile 3 | . . 2 . . 1 . AOE 70 | . 36 19 5 8 . 2 Terrain Rammed . | . . . . . . . Walls Destroyed . | . . . . . . . Machines Disabled . | . . . . . . . Actions | -11 -10 -10 -8 -8 -8 -8 --------- Run | Yrd Mat Sub Mat Gar Mat Gar Total 3021 | 61 1009 480 907 391 84 89 Wait 262 | . 153 43 40 25 1 . Move 2387 | 41 744 407 728 312 75 80 Hop . | . . . . . . . Pick Up 46 | 8 12 3 20 1 2 . Fast Attach 18 | 6 10 . 2 . . . Attach 11 | 1 1 . 6 1 1 1 Detach 7 | . . . 2 1 . 4 Swap 43 | . 16 9 17 1 . . Drop 38 | . 14 4 17 . 1 2 Fire 154 | 5 51 14 50 28 4 2 Melee 38 | . . . 16 22 . . Ram . | . . . . . . . Kick . | . . . . . . . Crush 17 | . 8 . 9 . . . Escape Stasis . | . . . . . . . Rewire . | . . . . . . . Trap . | . . . . . . . Miscellaneous . | . . . . . . . Route ------- -11/Scrapyard -10/Materials (discovered 5 exits: [*Mat x3] / [*Min] / *Sub) -10/Subcaves -8/Materials (discovered 3 exits: [*Fac] / [*Sto] / Gar) -8/Garrison (discovered 2 exits: *Mat x2) -8/Materials (discovered 2 exits: [*Sto] / Gar) -8/Garrison History --------- Turn | Location | Event 19 | -11/Scrapyard | Discovered new exit (range 15) 95 | -11/Scrapyard | Entered Materials 302 | -10/Materials | Build established: Mutant 320 | -10/Materials | Repaired Lgt. Treads 347 | -10/Materials | Repaired Assault Rifle 705 | -10/Materials | Central database locked down 933 | -10/Materials | Discovered new exit (range 8) 1026 | -10/Materials | Discovered new exit (range 15) 1089 | -10/Materials | Discovered new exit (range 13) 1532 | -10/Materials | Discovered new exit (range 8) 1635 | -10/Materials | Discovered new exit (range 7) 1654 | -10/Materials | Entered Subcaves 1655 | -10/Subcaves | Approached by a straggling Scientist 1868 | -10/Subcaves | Shifting Twisted Machinery released Sub. Power Source 2055 | -10/Subcaves | Discovered new exit (range 16) 2287 | -10/Subcaves | Visited 4L-MR0's lab 2299 | -10/Subcaves | Found Prototype Device 2299 | -10/Subcaves | Identified Sfc. Transmogrifier 2310 | -10/Subcaves | Found Cargo Legs 2400 | -10/Subcaves | Entered Materials 2400 | -8/Materials | Evolved 4 slots: Propulsion x1, Utility x2, Weapon x1 2703 | -8/Materials | Build established: Tank 3194 | -8/Materials | Met 7R-MNS 3434 | -8/Materials | Build established: Gunner 3574 | -8/Materials | Discovered new exit (range 16) 3622 | -8/Materials | Discovered new exit (range 39) 3960 | -8/Materials | Identified exit to Garrison 3960 | -8/Materials | Entered Garrison 3964 | -8/Garrison | Build established: Mutant 4126 | -8/Garrison | Triggered checkpoint 4201 | -8/Garrison | Destroyed 9 combat bots 4271 | -8/Garrison | Discovered new exit (range 12) 4350 | -8/Garrison | Triggered checkpoint 4452 | -8/Garrison | Triggered checkpoint 4593 | -8/Garrison | Discovered new exit (range 10) 4616 | -8/Garrison | Entered Materials 4682 | -8/Materials | Discovered new exit (range 8) 4704 | -8/Materials | Garrison activated, responded to threat 4755 | -8/Materials | Identified exit to Garrison 4755 | -8/Materials | Entered Garrison 4871 | -8/Garrison | Triggered checkpoint 4871 | -8/Garrison | Triggered checkpoint 4878 | -8/Garrison | Core integrity fell below 50% 4881 | -8/Garrison | Triggered checkpoint 4883 | -8/Garrison | Core integrity fell below 20% 4883 | -8/Garrison | Destroyed by P-60 Hacker with Shock Rifle Last Messages --------------- 04876_ Slug penetrates Reinforced Barrier. 04876_ Dropped Lrg. Storage Unit. 04876_ Med. Treads severed. 04877_ Dropped Arm. Treads. 04877_ Med. Treads destroyed. 04877_ Discarded Cld. Plasma Cannon. 04878_ C-45 Heavy ARC bursts open, deploying its payload. 04878_ G-50 Soldier unfolds itself. 04878_ G-47 Trooper unfolds itself. 04878_ Discarded Energy Well. 04878_ P-60 Hacker resets C-17 Slicer, system corruption cleaned. 04880_ Imp. Transmission Jammer severed. 04881_ Beams of light sweep through the air. An alarm sounds. 04882_ Critical hit (Burn: +37). 04883_ Chain reaction triggered in Lgt. Ion Engine. 04883_ S-10 Pest destroyed. Map ----- +----------------------------------------------------+ | ?????????????????????????????????????????????????? | | ?????????????????????????????????????????????????? | | ?????????????????????????????????????????????????? | | ?????????????????????????????????????????????????? | | ?????????????????????????????????????????????????? | | ?????????????????????????????????????????????????? | | ?????????????????????????????????????????????????? | | ?????????????????????????????????????????????????? | | ?????????????????????????????????????????????????? | | ?????????????????????????????????????????????????? | | ?????????????????????????????????????????????????? | | ??????????????????????????###????????????????????? | | ?????????????????????????? #????????????????????? | | ?????????????????????????? #????????????????????? | | ?????????????????????????? #????????????????????? | | ?????????????????????????# #????????????????????? | | ?????????????????????????# #????????????????????? | | ?????????????????????????# #????????????????????? | | ?????????????????????????# #?????????#??????????? | | ?????????????????????????# #???????? #??????????? | | ?????????????????????????# #??????? #??????????? | | ????????????????????????## ##""""## ##?????????? | | ????????????????????##### #?????????? | | ????????????????????? ??????????? | | ??????????????????????? ? ?????????? | | ????????????????????????#@ #? #? #?????????? | | ??????????????????????### ## ## ###???????? | | ??????????????????????# * #???????? | | ??????????????????????# [= c ^ #???????? | | ??????????????????????# % c " #???????? | | ??????????????????????#%s c gg #???????? | | ??????????????????????#;# ##pg # ###???????? | | #?????????????????????#[# p## # #?????????? | | ?????????????????????# # ] p ##????????? | | ?????????????????????# " =!= g ?????? | | ?????????????????????# # ]!!!= #?????????? | | ?????????????????????# # !## ## #?????????? | | #????????????????????#?# #? #?? #?????????? | | "??????????????????????# #??####??? #?????????? | | "??????????????????????# #??????????#?????????? | | "??????????????????????# #????????????????????? | | #??????????????????????# #????????????????????? | | #??????????????????????# #????????????????????? | | ######################## #????????????????????? | | ^ #????????????????????? | | ^ #????????????????????? | | #### #????????????????????? | | ???# ######### ###########????????????????????? | | ???# #???????# #??????????????????????????????? | | ???# #???????# #??????????????????????????????? | +----------------------------------------------------+ Best States ------------- Heat Dissipation 50 Energy Generation 16 Energy Capacity 615 Matter Stores 300 Matter Capacity 300 Sight Range 16 Terrain Scan Range 16 Terrain Scan Density 10 Jamming Range 14 Armor Coverage 300 Evasion (%) 50 Targeting Accuracy 12 Recoil Reduction 3 Authchip Count 1 Item Schematics ----------------- Hcp. Storage Unit | -10/Materials | Hacked Robot Schematics ------------------ None Fabricated ------------ Nothing Repaired ---------- Lgt. Treads | 66% | -10/Materials Assault Rifle | 33% | -10/Materials Studied --------- None Alien Tech Used ----------------- None Achievements -------------- None Challenges ------------ None Game ------ Seed BladeXenonKit Manual? 0 Play Time 00:35:41 Cumulative 427.7 hours Start 2026.06.29 @ 14:57:23 End 2026.06.29 @ 17:09:11 Sessions 1 Manual Loads 0 Difficulty Rogue Special Mode None Game No. 263 Rogue 263 Adventurer 0 Explorer 0 Win Type - Total 12 Types 11/0/1/0/0/0/0/0/0/0 Lore% 80 Gallery% 72 Achievement% 54 Wizard Run 0 Options --------- Layout 1 ASCII 0 Keyboard 1 Movement Numpad Keybinds 0 Fullscreen 2 Font 24/Smallcaps Map View 50x35 Zoom Use 0% Tactical HUD 1 Map Filters NONE Filters NONE Steam 1 RUN: d85b1042-01b6-4a67-a08d-a9fb9ff88608